fUST/lending_fUST_20240226
["ID","MTS","AMOUNT","RATE_DAILY","PERIOD"]
[315220455,1708951841095,-500.0,0.00019452,2]
[315220456,1708951841104,-500.0,0.00019452,2]
[315220457,1708951841113,-752.1,0.00019452,2]
[315220458,1708951841121,-501.27283164,0.00019452,2]
[315220459,1708951841130,-2084.73,0.00019452,2]
[315220460,1708951841139,-500.0,0.00019452,2]
[315220461,1708951841148,-500.0,0.00019452,2]
[315220462,1708951841157,-500.0,0.00019452,2]
[315220463,1708951841166,-500.0,0.00019452,2]
[315220464,1708951841175,-1689.23,0.00019452,2]
[315220465,1708951841184,-1486.75,0.00019452,2]
[315220466,1708951841193,-500.0,0.00019452,2]
[315220467,1708951841202,-7660.56,0.00019452,2]
[315220468,1708951841211,-500.9669518,0.00019452,2]
[315220469,1708951841219,-203.42282125,0.00019452,2]
[315220470,1708951841316,-1446.13,0.00019452,2]
[315220471,1708951841326,-2264.87,0.00019452,2]
[315220472,1708951841335,-500.0,0.00019452,2]
[315220473,1708951841344,-501.12834095,0.00019452,2]
[315220474,1708951841353,-3553.02,0.00019452,2]
[315220475,1708951841363,-500.0,0.00019452,2]
[315220477,1708951841372,-500.0,0.00019452,2]
[315220479,1708951841381,-1875.7,0.00019452,2]
[315220481,1708951841390,-2048.09,0.00019452,2]
[315220483,1708951841399,-500.0,0.00019452,2]
[315220485,1708951841408,-179.84917799,0.00019452,2]
[315220487,1708951841417,-466.15790035,0.00019452,2]
[315220489,1708951841426,-544.61600458,0.00019452,2]
[315220491,1708951841435,-500.0,0.00019452,2]
[315220493,1708951841445,-500.0,0.00019452,2]
[315220495,1708951841454,-501.08219983,0.00019452,2]
[315220496,1708951841463,-2350.08,0.00019452,2]
[315220498,1708951841472,-473.95953503,0.00019474,2]
[315220499,1708951841481,-7330.41372259,0.00019477,2]
[315220501,1708951841491,-7330.41372259,0.0001948,2]
[315220503,1708951841500,-10157.93975987,0.00019485,2]
[315220505,1708951841509,-473.95953503,0.0001949,2]
[315220507,1708951841518,-10157.93975987,0.0001949,2]
[315220509,1708951841528,-300.0,0.00019493,2]
[315220510,1708951841537,-10157.93975987,0.00019493,2]
[315220512,1708951841546,-7330.41372259,0.00019498,2]
[315220514,1708951841555,-473.95953503,0.00019498,2]
[315220516,1708951841565,-44777.59026706,0.000195,2]
[315220518,1708951841574,-500.0,0.00019538,2]
[315220519,1708951841583,-500.0,0.00019619,2]
[315220521,1708951841592,-500.0,0.00019619,2]
[315220522,1708951841601,-500.0,0.00019619,2]
[315220524,1708951841610,-304.47475657,0.00019619,2]
[315220526,1708951841620,-172909.02889151,0.0001962,2]
[315220527,1708951841629,-243.04803,0.0001962,2]
[315220529,1708951841638,-243.04803,0.0001962,2]
[315220530,1708951841647,-166.666666,0.00019627,2]
[315220531,1708951841656,-300.0,0.00019636,2]
[315220532,1708951841666,-5529.96122929,0.000197,2]
[315220533,1708951841676,-5529.96122929,0.000197,2]
[315220534,1708951841685,-5529.96122929,0.000197,2]
[315220535,1708951841694,-357.54842114,0.000197,2]
[315220536,1708951841703,-357.54842114,0.000197,2]
[315220537,1708951841712,-357.54842114,0.000197,2]
[315220538,1708951841722,-7663.00718724,0.000197,2]
[315220539,1708951841731,-7663.00718724,0.000197,2]
[315220540,1708951841740,-7663.00718724,0.000197,2]
[315220541,1708951841749,-281.99259048,0.00019725,2]
[315220542,1708951841758,-500.0,0.00019725,2]
[315220543,1708951841767,-500.0,0.00019725,2]
[315220544,1708951841776,-500.0,0.00019725,2]
[315220545,1708951841785,-500.0,0.00019726,2]
[315220546,1708951841794,-500.0,0.00019726,2]
[315220547,1708951841803,-500.0,0.00019726,2]
[315220548,1708951841813,-1194.66,0.00019726,2]
[315220549,1708951841823,-500.0,0.00019726,2]
[315220550,1708951841832,-500.0,0.00019726,2]
[315220551,1708951841841,-500.0,0.00019726,2]
[315220552,1708951841850,-166.66,0.00019726,2]
[315220553,1708951841860,-500.0,0.00019726,2]
[315220554,1708951841869,-500.0,0.00019726,2]
[315220555,1708951841878,-500.0,0.00019726,2]
[315220556,1708951841887,-500.0,0.00019726,2]
[315220557,1708951841897,-500.0,0.00019726,2]
[315220558,1708951841906,-555.07,0.00019726,2]
[315220559,1708951841915,-500.0,0.00019726,2]
[315220560,1708951841925,-500.0,0.00019726,2]
[315220561,1708951841934,-645.85,0.00019726,2]
[315220562,1708951841944,-2838.13,0.00019726,2]
[315220563,1708951841954,-1203.09,0.00019726,2]
[315220564,1708951841966,-500.0,0.00019726,2]
[315220565,1708951841976,-1431.98,0.00019726,2]
[315220566,1708951841985,-478.64621711,0.00019726,2]
[315220567,1708951841995,-500.0,0.00019726,2]
[315220568,1708951842005,-151.0,0.00019726,2]
[315220569,1708951842016,-500.0,0.00019726,2]
[315220570,1708951842027,-500.0,0.00019726,2]
[315220571,1708951842037,-1076.52,0.00019726,2]
[315220572,1708951842047,-500.0,0.00019726,2]
[315220573,1708951842057,-500.0,0.00019726,2]
[315220574,1708951842066,-3187.59,0.00019726,2]
[315220575,1708951842076,-609.93,0.00019726,2]
[315220576,1708951842085,-500.0,0.00019726,2]
[315220577,1708951842094,-1861.84153156,0.00019726,2]
[315220578,1708951842307,-641.04846844,0.00019726,2]
[315220579,1708951842317,-1581.89,0.00019726,2]
[315220580,1708951842326,-1429.97,0.00019726,2]
[315220581,1708951842336,-500.0,0.00019726,2]
[315220582,1708951842345,-500.0,0.00019726,2]
[315220583,1708951842354,-500.0,0.00019726,2]
[315220584,1708951842363,-500.0,0.00019726,2]
[315220585,1708951842373,-1967.67,0.00019726,2]
[315220586,1708951842383,-744.23,0.00019726,2]
[315220587,1708951842392,-2113.05,0.00019726,2]
[315220588,1708951842402,-1266.39,0.00019726,2]
[315220589,1708951842411,-500.0,0.00019726,2]
[315220590,1708951842420,-17598.23,0.00019726,2]
[315220591,1708951842429,-500.0,0.00019726,2]
[315220592,1708951842439,-243.51868878,0.00019726,2]
[315220593,1708951842449,-500.0,0.00019726,2]
[315220594,1708951842458,-500.0,0.00019726,2]
[315220595,1708951842467,-531.08,0.00019726,2]
[315220596,1708951842476,-500.0,0.00019726,2]
[315220597,1708951842486,-9768.2,0.00019726,2]
[315220598,1708951842495,-1180.13,0.00019726,2]
[315220599,1708951842507,-500.0,0.00019726,2]
[315220600,1708951842516,-356.05453121,0.00019726,2]
[315220601,1708951842525,-500.0,0.00019726,2]
[315220602,1708951842535,-500.0,0.00019726,2]
[315220603,1708951842544,-500.0,0.00019726,2]
[315220604,1708951842554,-4012.53,0.00019726,2]
[315220605,1708951842563,-500.0,0.00019726,2]
[315220606,1708951842573,-868.46,0.00019726,2]
[315220607,1708951842582,-1229.36,0.00019726,2]
[315220608,1708951842592,-500.0,0.00019726,2]
[315220609,1708951842601,-500.0,0.00019726,2]
[315220610,1708951842610,-505.63704845,0.00019726,2]
[315220611,1708951842619,-500.0,0.00019726,2]
[315220612,1708951842629,-20313.82,0.00019726,2]
[315220613,1708951842639,-622.25,0.00019726,2]
[315220614,1708951842648,-391.00786039,0.00019726,2]
[315220615,1708951842658,-752.1,0.00019726,2]
[315220616,1708951842668,-2084.73,0.00019726,2]
[315220617,1708951842677,-500.0,0.00019726,2]
[315220618,1708951842686,-500.0,0.00019726,2]
[315220619,1708951842695,-500.0,0.00019726,2]
[315220620,1708951842705,-500.0,0.00019726,2]
[315220621,1708951842714,-1689.23,0.00019726,2]
[315220622,1708951842723,-1486.75,0.00019726,2]
[315220623,1708951842733,-500.0,0.00019726,2]
[315220624,1708951842742,-7660.56,0.00019726,2]
[315220625,1708951842755,-1446.13,0.00019726,2]
[315220626,1708951842764,-243.04803,0.00019726,2]
[315220627,1708951842774,-2264.87,0.00019726,2]
[315220629,1708951842783,-500.0,0.00019726,2]
[315220631,1708951842793,-243.04803,0.00019726,2]
[315220633,1708951842802,-3553.02,0.00019726,2]
[315220635,1708951842811,-1875.7,0.00019726,2]
[315220637,1708951842821,-2048.09,0.00019726,2]
[315220638,1708951842830,-500.0,0.00019726,2]
[315220639,1708951842839,-2350.08,0.00019726,2]
[315220640,1708951842848,-300.0,0.00019778,2]
[315220641,1708951842857,-6639.46711033,0.000198,2]
[315220642,1708951842867,-300.0,0.00019921,2]
[315220645,1708951842876,-500.0,0.00019999,2]
[315220647,1708951842887,-500.0,0.00019999,2]
[315220649,1708951842897,-500.0,0.00019999,2]
[315220651,1708951842906,-500.0,0.00019999,2]
[315220652,1708951842916,-173.80944232,0.00019999,2]
[315220653,1708951842926,-399.333294,0.00019999,2]
[315220654,1708951842935,-91721.32019447,0.0002,4]
[315220656,1708951842944,-153.0,0.0002,2]
[315220659,1708951842953,-200.5826354,0.0002,2]
[315220660,1708951842966,-440.6731672,0.0002,2]
[315220662,1708951842975,-500.0,0.0002,2]
[315220664,1708951842984,-500.0,0.0002,2]
[315220665,1708951842995,-500.0,0.0002,2]
[315220666,1708951843006,-1194.66,0.0002,2]
[315220667,1708951843017,-500.0,0.0002,2]
[315220668,1708951843026,-500.0,0.0002,2]
[315220669,1708951843036,-500.0,0.0002,2]
[315220670,1708951843046,-500.0,0.0002,2]
[315220671,1708951843056,-555.07,0.0002,2]
[315220672,1708951843065,-500.0,0.0002,2]
[315220673,1708951843074,-645.85,0.0002,2]
[315220674,1708951843083,-500.0,0.0002,7]
[315220675,1708951843092,-500.0,0.0002,7]
[315220676,1708951843101,-500.0,0.0002,7]
[315220677,1708951843110,-299.08,0.0002,7]
[315220678,1708951843119,-2838.13,0.0002,2]
[315220679,1708951843128,-1203.09,0.0002,2]
[315220680,1708951843138,-500.0,0.0002,2]
[315220681,1708951843147,-1431.98,0.0002,2]
[315220682,1708951843156,-500.0,0.0002,2]
[315220683,1708951843166,-151.0,0.0002,2]
[315220684,1708951843175,-500.0,0.0002,2]
[315220685,1708951843184,-229.0,0.0002,10]
[315220686,1708951843194,-500.0,0.0002,2]
[315220687,1708951843204,-1076.52,0.0002,2]
[315220688,1708951843223,-500.0,0.0002,2]
[315220689,1708951843234,-500.0,0.0002,2]
[315220690,1708951843244,-3187.59,0.0002,2]
[315220691,1708951843255,-609.93,0.0002,2]
[315220692,1708951843264,-500.0,0.0002,2]
[315220693,1708951843274,-2502.89,0.0002,2]
[315220694,1708951843283,-1581.89,0.0002,2]
[315220695,1708951843292,-1429.97,0.0002,2]
[315220696,1708951843302,-500.0,0.0002,2]
[315220697,1708951843311,-500.0,0.0002,2]
[315220698,1708951843321,-500.0,0.0002,2]
[315220699,1708951843331,-500.0,0.0002,2]
[315220700,1708951843341,-1967.67,0.0002,2]
[315220701,1708951843350,-744.23,0.0002,2]
[315220702,1708951843359,-2113.05,0.0002,2]
[315220703,1708951843368,-1266.39,0.0002,2]
[315220704,1708951843377,-17598.23,0.0002,2]
[315220705,1708951843387,-500.0,0.0002,2]
[315220706,1708951843396,-500.0,0.0002,2]
[315220707,1708951843543,-500.0,0.0002,2]
[315220708,1708951843553,-531.08,0.0002,2]
[315220709,1708951843562,-9768.2,0.0002,2]
[315220710,1708951843571,-1180.13,0.0002,2]
[315220711,1708951843580,-500.0,0.0002,2]
[315220712,1708951843589,-500.0,0.0002,2]
[315220713,1708951843599,-500.0,0.0002,2]
[315220714,1708951843608,-500.0,0.0002,2]
[315220715,1708951843617,-4012.53,0.0002,2]
[315220716,1708951843626,-500.0,0.0002,2]
[315220717,1708951843635,-868.46,0.0002,2]
[315220718,1708951843644,-1229.36,0.0002,2]
[315220719,1708951843653,-500.0,0.0002,2]
[315220720,1708951843662,-500.0,0.0002,2]
[315220721,1708951843671,-500.0,0.0002,2]
[315220722,1708951843680,-20313.82,0.0002,2]
[315220723,1708951843689,-622.25,0.0002,2]
[315220724,1708951843699,-752.1,0.0002,2]
[315220725,1708951843708,-2084.73,0.0002,2]
[315220726,1708951843717,-500.0,0.0002,2]
[315220727,1708951843726,-271.81810252,0.0002,2]
[315220728,1708951843735,-500.0,0.0002,2]
[315220729,1708951843744,-533.98724685,0.0002,2]
[315220730,1708951843754,-1689.23,0.0002,2]
[315220731,1708951843763,-1486.75,0.0002,2]
[315220732,1708951843773,-500.0,0.0002,2]
[315220733,1708951843782,-7660.56,0.0002,2]
[315220734,1708951843791,-1446.13,0.0002,2]
[315220735,1708951843800,-243.04803,0.0002,2]
[315220736,1708951843810,-2264.87,0.0002,2]
[315220737,1708951843820,-500.0,0.0002,2]
[315220738,1708951843830,-243.04803,0.0002,2]
[315220739,1708951843841,-3553.02,0.0002,2]
[315220740,1708951843851,-1875.7,0.0002,2]
[315220741,1708951843860,-2048.09,0.0002,2]
[315220742,1708951843871,-303.01515304,0.0002,2]
[315220743,1708951843881,-500.0,0.0002,2]
[315220744,1708951843892,-2350.08,0.0002,2]
[315220745,1708951843903,-306.0,0.00020055,2]
[315220746,1708951843913,-300.0,0.00020063,2]
[315220747,1708951843923,-166.666666,0.00020076,2]
[315220748,1708951843933,-311.34930643,0.00020169,2]
[315220749,1708951843943,-383.09548099,0.00020169,2]
[315220750,1708951843956,-150.22255401,0.00020169,2]
[315220751,1708951843966,-2033.41168863,0.00020169,2]
[315220752,1708951843980,-1000.0,0.00020169,2]
[315220753,1708951843990,-4108.53689811,0.00020169,2]
[315220754,1708951844001,-683.67610223,0.00020169,2]
[315220755,1708951844010,-682.02433697,0.00020169,2]
[315220756,1708951844020,-480.27933258,0.00020169,2]
[315220757,1708951844029,-1694.25689425,0.00020169,2]
[315220758,1708951844039,-549.84449402,0.00020169,2]
[315220759,1708951844049,-754.97738411,0.00020169,2]
[315220760,1708951844060,-432.08260106,0.00020169,2]
[315220761,1708951844070,-151.0,0.00020169,2]
[315220762,1708951844081,-243.04803,0.00020169,2]
[315220763,1708951844092,-243.04803,0.00020169,2]
[315220764,1708951844102,-200.0,0.00020172,2]
[315220765,1708951844112,-399.333294,0.00020174,2]
[315220766,1708951844121,-34694.4414109,0.00020175,2]
[315220767,1708951844131,-5000.0,0.00020175,2]
[315220768,1708951844142,-5000.0,0.00020175,2]
[315220769,1708951844151,-5000.0,0.00020175,2]
[315220770,1708951844161,-5000.0,0.00020175,2]
[315220771,1708951844170,-10697.86322221,0.00020175,2]
[315220772,1708951844180,-5000.0,0.00020175,2]
[315220773,1708951844189,-5000.0,0.00020175,2]
[315220774,1708951844198,-772.88853722,0.00020175,2]
[315220775,1708951844207,-5000.0,0.00020175,2]
[315220776,1708951844217,-5000.0,0.00020175,2]
[315220777,1708951844226,-7832.64209159,0.00020175,2]
[315220778,1708951844235,-5000.0,0.00020175,2]
[315220779,1708951844245,-5000.0,0.00020175,2]
[315220780,1708951844256,-5000.0,0.00020175,2]
[315220781,1708951844265,-5000.0,0.00020175,2]
[315220782,1708951844274,-5000.0,0.00020175,2]
[315220783,1708951844283,-243.04803,0.00020175,2]
[315220784,1708951844292,-5000.0,0.00020175,2]
[315220786,1708951844301,-243.04803,0.00020175,2]
[315220788,1708951844310,-5000.0,0.00020175,2]
[315220790,1708951844319,-643.59909627,0.00020191,2]
[315220792,1708951844328,-153.0,0.00020192,2]
[315220793,1708951844338,-153.0,0.00020192,2]
[315220795,1708951844346,-153.0,0.00020192,2]
[315220796,1708951844355,-153.0,0.00020192,2]
[315220797,1708951844364,-153.0,0.00020192,2]
[315220799,1708951844373,-153.0,0.00020192,2]
[315220801,1708951844383,-200.5826354,0.00020192,2]
[315220802,1708951844392,-153.0,0.00020192,2]
[315220803,1708951844401,-153.0,0.00020192,2]
[315220804,1708951844410,-306.0,0.00020192,2]
[315220805,1708951844419,-200.5826354,0.00020192,2]
[315220806,1708951844429,-153.0,0.00020192,2]
[315220808,1708951844438,-153.0,0.00020192,2]
[315220810,1708951844447,-153.0,0.00020192,2]
[315220812,1708951844456,-300.0,0.00020206,2]
[315220813,1708951844465,-500.0,0.00020272,2]
[315220815,1708951844475,-500.0,0.00020272,2]
[315220816,1708951844484,-500.0,0.00020272,2]
[315220818,1708951844494,-500.0,0.00020272,2]
[315220820,1708951844503,-500.0,0.00020272,2]
[315220822,1708951844512,-500.0,0.00020272,2]
[315220823,1708951844522,-262.35647977,0.00020272,2]
[315220825,1708951844531,-500.0,0.00020272,2]
[315220827,1708951844540,-500.0,0.00020272,2]
[315220829,1708951844549,-500.0,0.00020272,2]
[315220831,1708951844559,-500.0,0.00020272,2]
[315220833,1708951844568,-500.0,0.00020272,2]
[315220835,1708951844577,-500.0,0.00020272,2]
[315220837,1708951844587,-500.0,0.00020272,2]
[315220839,1708951844596,-500.0,0.00020272,2]
[315220841,1708951844605,-500.0,0.00020272,2]
[315220843,1708951844613,-500.0,0.00020272,2]
[315220845,1708951844622,-500.0,0.00020272,2]
[315220847,1708951844631,-500.0,0.00020272,2]
[315220849,1708951844641,-500.0,0.00020272,2]
[315220851,1708951844649,-500.0,0.00020272,2]
[315220853,1708951844658,-500.0,0.00020272,2]
[315220855,1708951844667,-500.0,0.00020272,2]
[315220857,1708951844676,-500.0,0.00020272,2]
[315220859,1708951844687,-500.0,0.00020272,2]
[315220861,1708951844696,-500.0,0.00020272,2]
[315220863,1708951844705,-500.0,0.00020272,2]
[315220865,1708951844714,-500.0,0.00020272,2]
[315220867,1708951844723,-262.35647977,0.00020272,2]
[315220869,1708951844732,-500.0,0.00020272,2]
[315220871,1708951844741,-500.0,0.00020272,2]
[315220873,1708951844750,-500.0,0.00020272,2]
[315220874,1708951844759,-319.09963093,0.00020272,2]
[315220876,1708951844768,-500.0,0.00020272,2]
[315220878,1708951844778,-500.0,0.00020272,2]
[315220880,1708951844789,-500.0,0.00020272,2]
[315220882,1708951844798,-500.0,0.00020272,2]
[315220884,1708951844807,-500.0,0.00020272,2]
[315220886,1708951844816,-514.38392418,0.00020272,2]
[315220888,1708951844825,-500.0,0.00020272,2]
[315220890,1708951844834,-500.0,0.00020272,2]
[315220892,1708951844843,-500.0,0.00020272,2]
[315220894,1708951844853,-500.0,0.00020272,2]
[315220896,1708951844862,-500.0,0.00020272,2]
[315220898,1708951844871,-500.0,0.00020272,2]
[315220900,1708951844880,-500.0,0.00020272,2]
[315220902,1708951844890,-500.0,0.00020272,2]
[315220904,1708951844899,-500.0,0.00020272,2]
[315220905,1708951844908,-500.0,0.00020272,2]
[315220907,1708951844917,-500.0,0.00020272,2]
[315220909,1708951844927,-500.0,0.00020272,2]
[315220911,1708951844936,-500.0,0.00020272,2]
[315220913,1708951844946,-500.0,0.00020272,2]
[315220915,1708951844955,-500.0,0.00020272,2]
[315220917,1708951844965,-500.0,0.00020272,2]
[315220919,1708951844975,-200.0,0.00020272,2]
[315220921,1708951844984,-500.0,0.00020272,2]
[315220923,1708951844994,-466.39200886,0.00020272,2]
[315220925,1708951845012,-33.60799114,0.00020272,2]
[315220927,1708951845021,-500.0,0.00020273,2]
[315220929,1708951845031,-500.0,0.00020273,2]
[315220931,1708951845040,-500.0,0.00020273,2]
[315220933,1708951845049,-1194.66,0.00020273,2]
[315220935,1708951845059,-287.21408693,0.00020273,2]
[315220937,1708951845069,-500.0,0.00020273,2]
[315220939,1708951845077,-289.03746674,0.00020273,2]
[315220941,1708951845086,-500.0,0.00020273,2]
[315220943,1708951845095,-555.07,0.00020273,2]
[315220945,1708951845108,-500.0,0.00020273,2]
[315220947,1708951845117,-645.85,0.00020273,2]
[315220949,1708951845126,-2838.13,0.00020273,2]
[315220951,1708951845136,-1203.09,0.00020273,2]
[315220953,1708951845145,-500.0,0.00020273,2]
[315220954,1708951845155,-1431.98,0.00020273,2]
[315220956,1708951845164,-500.0,0.00020273,2]
[315220958,1708951845173,-500.0,0.00020273,2]
[315220960,1708951845182,-500.0,0.00020273,2]
[315220962,1708951845191,-1076.52,0.00020273,2]
[315220964,1708951845200,-500.0,0.00020273,2]
[315220966,1708951845210,-500.0,0.00020273,2]
[315220968,1708951845219,-3187.59,0.00020273,2]
[315220970,1708951845227,-609.93,0.00020273,2]
[315220972,1708951845236,-448.32673264,0.00020273,2]
[315220973,1708951845245,-2502.89,0.00020273,2]
[315220975,1708951845255,-1581.89,0.00020273,2]
[315220977,1708951845264,-1429.97,0.00020273,2]
[315220979,1708951845273,-500.0,0.00020273,2]
[315220981,1708951845282,-386.07810243,0.00020273,2]
[315220983,1708951845291,-500.0,0.00020273,2]
[315220985,1708951845301,-500.0,0.00020273,2]
[315220987,1708951845310,-1967.67,0.00020273,2]
[315220989,1708951845320,-744.23,0.00020273,2]
[315220991,1708951845329,-2113.05,0.00020273,2]
[315220993,1708951845338,-1266.39,0.00020273,2]
[315220995,1708951845347,-17598.23,0.00020273,2]
[315220997,1708951845356,-500.0,0.00020273,2]
[315220999,1708951845365,-500.0,0.00020273,2]
[315221001,1708951845374,-500.0,0.00020273,2]
[315221003,1708951845383,-531.08,0.00020273,2]
[315221005,1708951845393,-9768.2,0.00020273,2]
[315221007,1708951845403,-1180.13,0.00020273,2]
[315221009,1708951845412,-500.0,0.00020273,2]
[315221011,1708951845421,-500.0,0.00020273,2]
[315221013,1708951845431,-500.0,0.00020273,2]
[315221015,1708951845440,-500.0,0.00020273,2]
[315221017,1708951845450,-4012.53,0.00020273,2]
[315221019,1708951845459,-868.46,0.00020273,2]
[315221021,1708951845468,-1229.36,0.00020273,2]
[315221023,1708951845477,-500.0,0.00020273,2]
[315221025,1708951845486,-508.64002911,0.00020273,2]
[315221026,1708951845495,-500.0,0.00020273,2]
[315221028,1708951845504,-20313.82,0.00020273,2]
[315221030,1708951845513,-622.25,0.00020273,2]
[315221032,1708951845522,-752.1,0.00020273,2]
[315221034,1708951845531,-2084.73,0.00020273,2]
[315221036,1708951845541,-502.0792975,0.00020273,2]
[315221038,1708951845550,-519.47,0.00020273,2]
[315221049,1708951845559,-1689.23,0.00020273,2]
[315221052,1708951845656,-1486.75,0.00020273,2]
[315221054,1708951845666,-500.0,0.00020273,2]
[315221055,1708951845675,-363.31884681,0.00020273,2]
[315221084,1708951845902,-7297.24115319,0.00020273,2]
[315221086,1708951845911,-1446.13,0.00020273,2]
[315221087,1708951845920,-2264.87,0.00020273,2]
[315221089,1708951845929,-243.04803,0.00020273,2]
[315221091,1708951845938,-500.0,0.00020273,2]
[315221093,1708951845948,-744.90071967,0.00020273,2]
[315221103,1708951846037,-2808.11928033,0.00020273,2]
[315221105,1708951846048,-243.04803,0.00020273,2]
[315221107,1708951846057,-1875.7,0.00020273,2]
[315221109,1708951846066,-2048.09,0.00020273,2]
[315221111,1708951846075,-175.05326981,0.00020273,2]
[315221113,1708951846084,-2350.08,0.00020273,2]
[315221115,1708951846094,-580.0,0.000203,2]
[315221117,1708951846103,-1212.31518255,0.00020328,2]
[315221119,1708951846112,-300.0,0.00020348,2]
[315221121,1708951846121,-27090.13943136,0.00020375,2]
[315221123,1708951846130,-243.58118859,0.00020377,2]
[315221125,1708951846138,-243.58118859,0.00020379,2]
[315221127,1708951846147,-620.05163868,0.00020403,2]
[315221129,1708951846156,-243.58118859,0.00020455,2]
[315221131,1708951846165,-306.0,0.00020466,2]
[315221132,1708951846174,-153.0,0.00020466,2]
[315221134,1708951846184,-300.0,0.00020491,2]
[315221136,1708951846193,-196.62116448,0.00020519,2]
[315221138,1708951846203,-166.666666,0.00020524,2]
[315221140,1708951846212,-643.59909627,0.00020546,2]
[315221142,1708951846221,-500.0,0.00020547,2]
[315221144,1708951846231,-500.0,0.00020547,2]
[315221146,1708951846240,-500.0,0.00020547,2]
[315221148,1708951846249,-1194.66,0.00020547,2]
[315221150,1708951846260,-500.0,0.00020547,2]
[315221152,1708951846269,-500.0,0.00020547,2]
[315221154,1708951846279,-555.07,0.00020547,2]
[315221156,1708951846288,-500.0,0.00020547,2]
[315221158,1708951846297,-645.85,0.00020547,2]
[315221160,1708951846307,-2838.13,0.00020547,2]
[315221162,1708951846316,-1203.09,0.00020547,2]
[315221164,1708951846325,-500.0,0.00020547,2]
[315221166,1708951846334,-1431.98,0.00020547,2]
[315221168,1708951846343,-9602.07581363,0.00020547,2]
[315221170,1708951846353,-500.0,0.00020547,2]
[315221172,1708951846362,-500.0,0.00020547,2]
[315221174,1708951846371,-500.0,0.00020547,2]
[315221176,1708951846381,-1076.52,0.00020547,2]
[315221178,1708951846390,-500.0,0.00020547,2]
[315221180,1708951846399,-500.0,0.00020547,2]
[315221182,1708951846409,-3187.59,0.00020547,2]
[315221184,1708951846417,-609.93,0.00020547,2]
[315221186,1708951846426,-1581.89,0.00020547,2]
[315221188,1708951846436,-1429.97,0.00020547,2]
[315221190,1708951846445,-461.73234439,0.00020547,2]
[315221192,1708951846454,-500.0,0.00020547,2]
[315221194,1708951846463,-500.0,0.00020547,2]
[315221196,1708951846472,-1967.67,0.00020547,2]
[315221198,1708951846481,-744.23,0.00020547,2]
[315221200,1708951846490,-2113.05,0.00020547,2]
[315221202,1708951846499,-1266.39,0.00020547,2]
[315221204,1708951846510,-1438.48667892,0.00020547,2]
[315221207,1708951846532,-2287.56440047,0.00020175,2]
[315221209,1708951846543,-669.58428825,0.00020175,2]
[315221211,1708951846554,-2042.85131128,0.00020175,2]
[315221213,1708951846563,-425.55529812,0.00020547,2]
[315222073,1708952285034,-261.77212706,0.00017821,2]
[315222074,1708952285056,-1456.99915689,0.00017822,2]
[315222075,1708952297961,-155.02790502,0.0001782,2]
[315222076,1708952300791,-261.77212706,0.00017822,2]
[315222077,1708952306660,-677.52336534,0.00017823,2]
[315222078,1708952344896,-241.328007,0.00017825,2]
[315222079,1708952344917,-1955.2383446,0.00018085,2]
[315222080,1708952378379,-1718.77128395,0.00018083,2]